[Event "Live Chess"]
[Site "Chess.com"]
[Date "2024.06.01"]
[Round "-"]
[White "koekoekoe"]
[Black "Zhevzh1k7"]
[Result "1-0"]
[WhiteElo "2059"]
[BlackElo "1110"]
[TimeControl "300"]
[EndTime "12:34:48 PDT"]
[Termination "koekoekoe won by checkmate"]

1. d4 {[%clk 0:04:57.8]} 1... Nf6 {[%clk 0:04:57.9]} 2. Bf4 {[%clk 0:04:57.3]}
2... c6 {[%clk 0:04:56.3]} 3. e3 {[%clk 0:04:56.9]} 3... Qb6 {[%clk 0:04:54.2]}
4. b3 {[%clk 0:04:55]} 4... d6 {[%clk 0:04:51]} 5. c4 {[%clk 0:04:54.5]} 5... g6
{[%clk 0:04:47.3]} 6. Nd2 {[%clk 0:04:54]} 6... Bg7 {[%clk 0:04:45.5]} 7. Ngf3
{[%clk 0:04:53.5]} 7... O-O {[%clk 0:04:42]} 8. Be2 {[%clk 0:04:52.3]} 8... d5
{[%clk 0:04:38]} 9. c5 {[%clk 0:04:50.2]} 9... Qd8 {[%clk 0:04:33]} 10. O-O
{[%clk 0:04:49.6]} 10... e6 {[%clk 0:04:29.3]} 11. h3 {[%clk 0:04:48.8]} 11...
Nbd7 {[%clk 0:04:26.4]} 12. Ne5 {[%clk 0:04:46.5]} 12... Nxe5 {[%clk 0:04:24.8]}
13. Bxe5 {[%clk 0:04:46.4]} 13... Nd7 {[%clk 0:04:21.9]} 14. Bxg7 {[%clk
0:04:45.1]} 14... Kxg7 {[%clk 0:04:20.7]} 15. Nf3 {[%clk 0:04:44.6]} 15... Nf6
{[%clk 0:04:19.2]} 16. b4 {[%clk 0:04:43.9]} 16... a5 {[%clk 0:04:16.2]} 17. a3
{[%clk 0:04:42.8]} 17... a4 {[%clk 0:04:12.5]} 18. b5 {[%clk 0:04:39.3]} 18...
cxb5 {[%clk 0:04:11.1]} 19. Bxb5 {[%clk 0:04:39.2]} 19... Bd7 {[%clk 0:04:08.8]}
20. Rb1 {[%clk 0:04:34.8]} 20... Ne4 {[%clk 0:03:46.3]} 21. Qc2 {[%clk
0:04:25.6]} 21... Bxb5 {[%clk 0:03:34.4]} 22. Rxb5 {[%clk 0:04:25.5]} 22... Qc7
{[%clk 0:03:30]} 23. Rfb1 {[%clk 0:04:22.3]} 23... Rfb8 {[%clk 0:03:23.2]} 24.
Ne5 {[%clk 0:04:19.8]} 24... Nf6 {[%clk 0:03:13.5]} 25. R1b4 {[%clk 0:04:11.5]}
25... Nd7 {[%clk 0:03:10.2]} 26. Nd3 {[%clk 0:03:58.6]} 26... b6 {[%clk
0:03:01.9]} 27. Rxa4 {[%clk 0:03:45.2]} 27... Rxa4 {[%clk 0:02:57.4]} 28. Qxa4
{[%clk 0:03:45.1]} 28... bxc5 {[%clk 0:02:55.4]} 29. Rxb8 {[%clk 0:03:40.5]}
29... Nxb8 {[%clk 0:02:50.4]} 30. Nxc5 {[%clk 0:03:26.5]} 30... Nc6 {[%clk
0:02:43.9]} 31. Qb5 {[%clk 0:03:15.6]} 31... Na7 {[%clk 0:02:38.6]} 32. Qb7
{[%clk 0:03:05.2]} 32... Qxb7 {[%clk 0:02:32.7]} 33. Nxb7 {[%clk 0:03:05.1]}
33... Nb5 {[%clk 0:02:28.8]} 34. a4 {[%clk 0:03:02.4]} 34... Na7 {[%clk
0:02:27.4]} 35. a5 {[%clk 0:03:01.3]} 35... Kf8 {[%clk 0:02:24.5]} 36. Kh2
{[%clk 0:02:58.9]} 36... Ke7 {[%clk 0:02:22.6]} 37. Kg3 {[%clk 0:02:58.4]} 37...
Kd7 {[%clk 0:02:21.5]} 38. Kf4 {[%clk 0:02:55.9]} 38... f6 {[%clk 0:02:18.1]}
39. e4 {[%clk 0:02:53.4]} 39... dxe4 {[%clk 0:02:16]} 40. Kxe4 {[%clk
0:02:52.4]} 40... Kc7 {[%clk 0:02:13.3]} 41. Nc5 {[%clk 0:02:49.7]} 41... Kd6
{[%clk 0:02:05.7]} 42. f4 {[%clk 0:02:44.7]} 42... h5 {[%clk 0:02:00]} 43. g4
{[%clk 0:02:43.7]} 43... hxg4 {[%clk 0:01:58.8]} 44. hxg4 {[%clk 0:02:43.6]}
44... g5 {[%clk 0:01:52.7]} 45. f5 {[%clk 0:02:39.3]} 45... exf5+ {[%clk
0:01:49.2]} 46. Kxf5 {[%clk 0:02:34.9]} 46... Ke7 {[%clk 0:01:43.9]} 47. a6
{[%clk 0:02:28.9]} 47... Kf7 {[%clk 0:01:29.8]} 48. Ne4 {[%clk 0:02:27.4]} 48...
Nc6 {[%clk 0:01:27.9]} 49. Nd6+ {[%clk 0:02:16.8]} 49... Ke7 {[%clk 0:01:25.1]}
50. Nb5 {[%clk 0:02:15]} 50... Kd7 {[%clk 0:01:16.1]} 51. a7 {[%clk 0:02:12]}
51... Nxa7 {[%clk 0:01:13.6]} 52. Nxa7 {[%clk 0:02:11.9]} 52... Ke7 {[%clk
0:01:12.3]} 53. d5 {[%clk 0:02:08.8]} 53... Kd6 {[%clk 0:01:06.8]} 54. Kxf6
{[%clk 0:02:08.2]} 54... Kxd5 {[%clk 0:01:06.2]} 55. Kxg5 {[%clk 0:02:07.8]}
55... Kd6 {[%clk 0:01:06.1]} 56. Kf6 {[%clk 0:02:07.3]} 56... Kd7 {[%clk
0:01:05.2]} 57. Kf7 {[%clk 0:02:05.7]} 57... Kd6 {[%clk 0:01:04.3]} 58. g5
{[%clk 0:02:05.3]} 58... Ke5 {[%clk 0:01:04.2]} 59. g6 {[%clk 0:02:04.9]} 59...
Kf5 {[%clk 0:01:04]} 60. g7 {[%clk 0:02:04.8]} 60... Kg5 {[%clk 0:01:03.3]} 61.
g8=Q+ {[%clk 0:02:04.7]} 61... Kf5 {[%clk 0:01:02.7]} 62. Qg6+ {[%clk
0:02:03.6]} 62... Ke5 {[%clk 0:01:01.5]} 63. Qe6+ {[%clk 0:02:03.5]} 63... Kd4
{[%clk 0:01:00.1]} 64. Kf6 {[%clk 0:02:02.9]} 64... Kc5 {[%clk 0:00:59.4]} 65.
Nc8 {[%clk 0:02:00.2]} 65... Kd4 {[%clk 0:00:59.3]} 66. Qe5+ {[%clk 0:01:58.8]}
66... Kc4 {[%clk 0:00:58.3]} 67. Qd6 {[%clk 0:01:57.6]} 67... Kc3 {[%clk
0:00:57.4]} 68. Ke5 {[%clk 0:01:56.4]} 68... Kc4 {[%clk 0:00:57.3]} 69. Ke4
{[%clk 0:01:55.8]} 69... Kc3 {[%clk 0:00:57.2]} 70. Qd4+ {[%clk 0:01:54.9]}
70... Kc2 {[%clk 0:00:55.5]} 71. Qd3+ {[%clk 0:01:54.4]} 71... Kb2 {[%clk
0:00:54.8]} 72. Qc4 {[%clk 0:01:52.5]} 72... Kb1 {[%clk 0:00:53]} 73. Qe2 {[%clk
0:01:51]} 73... Kc1 {[%clk 0:00:51.9]} 74. Kd3 {[%clk 0:01:50.9]} 74... Kb1
{[%clk 0:00:51]} 75. Kc3 {[%clk 0:01:49.9]} 75... Ka1 {[%clk 0:00:49.8]} 76.
Qb2# {[%clk 0:01:49.4]} 1-0

[Event "Live Chess"]
[Site "Chess.com"]
[Date "2024.06.01"]
[Round "-"]
[White "Sweet-O"]
[Black "Silverback7829"]
[Result "1/2-1/2"]
[WhiteElo "1556"]
[BlackElo "1114"]
[TimeControl "300"]
[EndTime "12:34:54 PDT"]
[Termination "Game drawn by repetition"]

1. d4 {[%clk 0:04:58.7]} 1... d5 {[%clk 0:04:58.1]} 2. Nc3 {[%clk 0:04:58.6]}
2... Nc6 {[%clk 0:04:56.7]} 3. Bf4 {[%clk 0:04:56.6]} 3... Nf6 {[%clk
0:04:53.2]} 4. Nb5 {[%clk 0:04:52.5]} 4... a6 {[%clk 0:04:43.8]} 5. Nxc7+ {[%clk
0:04:48.7]} 5... Kd7 {[%clk 0:04:30.3]} 6. Nxa8 {[%clk 0:04:46]} 6... Qa5+
{[%clk 0:04:24.6]} 7. c3 {[%clk 0:04:39.9]} 7... Ne4 {[%clk 0:04:17.9]} 8. g3
{[%clk 0:04:31.9]} 8... e6 {[%clk 0:04:13]} 9. f3 {[%clk 0:04:27.6]} 9... Bd6
{[%clk 0:03:55.7]} 10. Bxd6 {[%clk 0:04:22.9]} 10... Nxd6 {[%clk 0:03:52.1]} 11.
Qd3 {[%clk 0:04:16.3]} 11... g6 {[%clk 0:03:40.3]} 12. b4 {[%clk 0:04:10.7]}
12... Qa3 {[%clk 0:03:29.9]} 13. e3 {[%clk 0:04:05.4]} 13... Nxb4 {[%clk
0:03:20.5]} 14. cxb4 {[%clk 0:04:01.2]} 14... Qxb4+ {[%clk 0:03:17.7]} 15. Qd2
{[%clk 0:03:56.1]} 15... Qxd2+ {[%clk 0:03:12.9]} 16. Kxd2 {[%clk 0:03:53.6]}
16... Nc4+ {[%clk 0:03:08.1]} 17. Bxc4 {[%clk 0:03:49.9]} 17... dxc4 {[%clk
0:03:05.7]} 18. Nb6+ {[%clk 0:03:49.3]} 18... Kc7 {[%clk 0:03:00.2]} 19. Nxc8
{[%clk 0:03:49.2]} 19... Kxc8 {[%clk 0:02:58.3]} 20. Ne2 {[%clk 0:03:48.6]}
20... Rd8 {[%clk 0:02:55.3]} 21. Rhc1 {[%clk 0:03:47.5]} 21... f6 {[%clk
0:02:51]} 22. Rxc4+ {[%clk 0:03:46.3]} 22... Kb8 {[%clk 0:02:46.4]} 23. Nf4
{[%clk 0:03:43.8]} 23... g5 {[%clk 0:02:43]} 24. Nxe6 {[%clk 0:03:42.4]} 24...
Rc8 {[%clk 0:02:34.3]} 25. Rxc8+ {[%clk 0:03:37.7]} 25... Kxc8 {[%clk
0:02:31.6]} 26. Nf8 {[%clk 0:03:37.2]} 26... h6 {[%clk 0:02:28.5]} 27. Ne6
{[%clk 0:02:46.3]} 27... Kb8 {[%clk 0:02:25.6]} 28. f4 {[%clk 0:02:39.5]} 28...
Ka7 {[%clk 0:02:22.5]} 29. d5 {[%clk 0:02:37.6]} 29... Kb8 {[%clk 0:02:16.7]}
30. Rc1 {[%clk 0:02:36.3]} 30... Ka7 {[%clk 0:02:12.8]} 31. d6 {[%clk
0:02:35.3]} 31... b5 {[%clk 0:02:08.3]} 32. d7 {[%clk 0:02:33.8]} 32... gxf4
{[%clk 0:02:03.5]} 33. d8=Q {[%clk 0:02:29.7]} 33... fxe3+ {[%clk 0:01:58.6]}
34. Kxe3 {[%clk 0:02:27.8]} 34... f5 {[%clk 0:01:53.6]} 35. Rc7+ {[%clk
0:02:24.9]} 35... Kb6 {[%clk 0:01:48.7]} 36. Rc4+ {[%clk 0:02:11.6]} 36... Kb7
{[%clk 0:01:39.5]} 37. Qc7+ {[%clk 0:02:07.9]} 37... Ka8 {[%clk 0:01:31.9]} 38.
Qd8+ {[%clk 0:02:00.5]} 38... Kb7 {[%clk 0:01:28.1]} 39. Rc7+ {[%clk 0:01:59.8]}
39... Kb6 {[%clk 0:01:24.5]} 40. Rd7+ {[%clk 0:01:41.4]} 40... Kc6 {[%clk
0:01:16.8]} 41. Rc7+ {[%clk 0:01:37.5]} 41... Kb6 {[%clk 0:01:12.6]} 1/2-1/2

[Event "Live Chess"]
[Site "Chess.com"]
[Date "2024.06.01"]
[Round "-"]
[White "NottheBishopSacrifice"]
[Black "Nazar-Makarchuk"]
[Result "1-0"]
[WhiteElo "2252"]
[BlackElo "1504"]
[TimeControl "300"]
[EndTime "12:34:57 PDT"]
[Termination "NottheBishopSacrifice won by resignation"]

1. g3 {[%clk 0:04:58.3]} 1... d5 {[%clk 0:04:59.5]} 2. Bg2 {[%clk 0:04:58]} 2...
Nf6 {[%clk 0:04:59.1]} 3. Nf3 {[%clk 0:04:57.7]} 3... Nc6 {[%clk 0:04:57.9]} 4.
O-O {[%clk 0:04:57.2]} 4... e5 {[%clk 0:04:57.4]} 5. d3 {[%clk 0:04:56.4]} 5...
Bd6 {[%clk 0:04:56.8]} 6. Re1 {[%clk 0:04:54.8]} 6... O-O {[%clk 0:04:55.7]} 7.
e4 {[%clk 0:04:53.9]} 7... dxe4 {[%clk 0:04:54.6]} 8. dxe4 {[%clk 0:04:53.8]}
8... Bb4 {[%clk 0:04:50.4]} 9. c3 {[%clk 0:04:50.9]} 9... Qxd1 {[%clk 0:04:49]}
10. Rxd1 {[%clk 0:04:50.8]} 10... Ba5 {[%clk 0:04:48.4]} 11. Nbd2 {[%clk
0:04:49.7]} 11... Bb6 {[%clk 0:04:47.6]} 12. Nc4 {[%clk 0:04:46.9]} 12... Ng4
{[%clk 0:04:45.3]} 13. Nxb6 {[%clk 0:04:41.9]} 13... cxb6 {[%clk 0:04:44]} 14.
Be3 {[%clk 0:04:40.5]} 14... Nxe3 {[%clk 0:04:42.9]} 15. fxe3 {[%clk 0:04:40]}
15... Bg4 {[%clk 0:04:41.2]} 16. Rd6 {[%clk 0:04:37.7]} 16... Bxf3 {[%clk
0:04:40]} 17. Bxf3 {[%clk 0:04:37.6]} 17... f6 {[%clk 0:04:38.6]} 18. Rad1
{[%clk 0:04:36.2]} 18... Rfd8 {[%clk 0:04:37.8]} 19. Be2 {[%clk 0:04:32.7]}
19... Rxd6 {[%clk 0:04:35.6]} 20. Rxd6 {[%clk 0:04:32.6]} 20... Rd8 {[%clk
0:04:34.5]} 21. Bc4+ {[%clk 0:04:32.2]} 21... Kf8 {[%clk 0:04:32.9]} 22. Rd5
{[%clk 0:04:29.7]} 22... Rxd5 {[%clk 0:04:31.7]} 23. exd5 {[%clk 0:04:26.4]}
23... Na5 {[%clk 0:04:29.3]} 24. Bd3 {[%clk 0:04:25]} 24... Ke7 {[%clk
0:04:28.6]} 25. Bxh7 {[%clk 0:04:23.1]} 25... Kd6 {[%clk 0:04:27.8]} 26. e4
{[%clk 0:04:22.2]} 26... Nc4 {[%clk 0:04:26.5]} 27. b3 {[%clk 0:04:20.8]} 27...
Ne3 {[%clk 0:04:19.7]} 28. h4 {[%clk 0:04:07.5]} 28... Nd1 {[%clk 0:04:17.6]}
29. c4 {[%clk 0:03:59.7]} 29... Nc3 {[%clk 0:04:16.3]} 30. Kf2 {[%clk
0:03:55.4]} 30... Nxa2 {[%clk 0:04:15.2]} 31. Ke3 {[%clk 0:03:54.8]} 31... Nc1
{[%clk 0:04:14.5]} 32. b4 {[%clk 0:03:53.1]} 32... a5 {[%clk 0:04:11.1]} 33.
bxa5 {[%clk 0:03:50.2]} 33... bxa5 {[%clk 0:04:10.6]} 34. Kd2 {[%clk 0:03:49]}
34... Nb3+ {[%clk 0:04:08.8]} 35. Kc3 {[%clk 0:03:47.9]} 35... Nc5 {[%clk
0:04:04.1]} 36. Bf5 {[%clk 0:03:44]} 36... Na6 {[%clk 0:03:50.2]} 37. g4 {[%clk
0:03:43.1]} 37... Kc5 {[%clk 0:03:47.3]} 38. g5 {[%clk 0:03:42]} 38... fxg5
{[%clk 0:03:45.5]} 39. hxg5 {[%clk 0:03:41.9]} 39... b5 {[%clk 0:03:42]} 40.
cxb5 {[%clk 0:03:40]} 40... Kxb5 {[%clk 0:03:40]} 41. Kb3 {[%clk 0:03:35.2]}
41... Kc5 {[%clk 0:03:38.8]} 42. Ka4 {[%clk 0:03:33.7]} 42... Kb6 {[%clk
0:03:34.7]} 43. Kb3 {[%clk 0:03:27.5]} 43... Nc5+ {[%clk 0:03:33.3]} 44. Kc4
{[%clk 0:03:26.3]} 44... a4 {[%clk 0:03:28.1]} 45. Kb4 {[%clk 0:03:25.1]} 45...
Na6+ {[%clk 0:03:09.7]} 46. Kxa4 {[%clk 0:03:23.6]} 46... Kc5 {[%clk 0:03:09.3]}
47. Ka5 {[%clk 0:03:20.9]} 47... Nc7 {[%clk 0:03:08.6]} 48. g6 {[%clk
0:03:16.5]} 48... Ne8 {[%clk 0:03:07.3]} 49. Bg4 {[%clk 0:02:58.1]} 49... Nd6
{[%clk 0:03:06.2]} 50. Bf3 {[%clk 0:02:57.7]} 50... Kd4 {[%clk 0:03:01.1]} 51.
Kb6 {[%clk 0:02:55.4]} 51... Ke3 {[%clk 0:02:58.7]} 52. Bh1 {[%clk 0:02:53.6]}
52... Kf4 {[%clk 0:02:51]} 53. Kc6 {[%clk 0:02:50.9]} 53... Ne8 {[%clk
0:02:47.8]} 54. d6 {[%clk 0:02:50.1]} 54... Nf6 {[%clk 0:02:39.6]} 55. d7 {[%clk
0:02:48.1]} 55... Nxd7 {[%clk 0:02:38.6]} 56. Kxd7 {[%clk 0:02:47.4]} 56... Kg5
{[%clk 0:02:38.2]} 57. Kd6 {[%clk 0:02:46.4]} 57... Kxg6 {[%clk 0:02:37.6]} 58.
Kxe5 {[%clk 0:02:46]} 58... Kf7 {[%clk 0:02:37]} 59. Kd6 {[%clk 0:02:45.6]}
59... Ke8 {[%clk 0:02:36.3]} 60. e5 {[%clk 0:02:44.2]} 60... g5 {[%clk
0:02:35.2]} 61. e6 {[%clk 0:02:41.9]} 61... g4 {[%clk 0:02:34.6]} 62. e7 {[%clk
0:02:41]} 62... g3 {[%clk 0:02:32.3]} 63. Bc6+ {[%clk 0:02:39.8]} 1-0

[Event "Live Chess"]
[Site "Chess.com"]
[Date "2024.06.01"]
[Round "-"]
[White "matt1979"]
[Black "StoreySniper"]
[Result "0-1"]
[WhiteElo "1387"]
[BlackElo "2532"]
[TimeControl "300"]
[EndTime "12:35:21 PDT"]
[Termination "StoreySniper won by resignation"]

1. f4 {[%clk 0:04:58.8]} 1... d5 {[%clk 0:04:54.1]} 2. e3 {[%clk 0:04:57.3]}
2... Nc6 {[%clk 0:04:50.1]} 3. Bb5 {[%clk 0:04:55.3]} 3... Nf6 {[%clk
0:04:47.8]} 4. Nf3 {[%clk 0:04:53.8]} 4... Bg4 {[%clk 0:04:45.4]} 5. O-O {[%clk
0:04:51.2]} 5... Qd6 {[%clk 0:04:41.5]} 6. Qe1 {[%clk 0:04:47.9]} 6... Bxf3
{[%clk 0:04:38.1]} 7. Rxf3 {[%clk 0:04:45.4]} 7... e5 {[%clk 0:04:36.2]} 8. fxe5
{[%clk 0:04:40.8]} 8... Qxe5 {[%clk 0:04:35.3]} 9. Bxc6+ {[%clk 0:04:38]} 9...
bxc6 {[%clk 0:04:33.4]} 10. Nc3 {[%clk 0:04:33]} 10... Bd6 {[%clk 0:04:31.6]}
11. Rh3 {[%clk 0:04:25]} 11... O-O-O {[%clk 0:04:20.1]} 12. Qe2 {[%clk
0:04:18.6]} 12... h5 {[%clk 0:04:18.7]} 13. d4 {[%clk 0:04:08.4]} 13... Qe6
{[%clk 0:04:10.8]} 14. Qa6+ {[%clk 0:04:04.9]} 14... Kd7 {[%clk 0:04:08.4]} 15.
Ne2 {[%clk 0:03:52.2]} 15... Ng4 {[%clk 0:04:01.9]} 16. Qd3 {[%clk 0:03:43]}
16... g5 {[%clk 0:03:48]} 17. c4 {[%clk 0:03:40.4]} 17... Rdg8 {[%clk
0:03:42.5]} 18. cxd5 {[%clk 0:03:35.3]} 18... cxd5 {[%clk 0:03:34.4]} 19. Qb5+
{[%clk 0:03:27.6]} 19... Ke7 {[%clk 0:03:30.1]} 20. Bd2 {[%clk 0:03:21.3]} 20...
Nf6 {[%clk 0:03:19.2]} 21. Rf3 {[%clk 0:03:03.7]} 21... Ne4 {[%clk 0:03:14.5]}
22. Bb4 {[%clk 0:02:56.7]} 22... g4 {[%clk 0:02:59.9]} 23. Bxd6+ {[%clk
0:02:49.9]} 23... Nxd6 {[%clk 0:02:58.8]} 24. Nf4 {[%clk 0:02:18.4]} 24... Nxb5
{[%clk 0:02:55.2]} 25. Nxe6 {[%clk 0:02:15.9]} 25... gxf3 {[%clk 0:02:54.6]} 0-1

[Event "Live Chess"]
[Site "Chess.com"]
[Date "2024.06.01"]
[Round "-"]
[White "Eva3337"]
[Black "ACM42"]
[Result "0-1"]
[WhiteElo "1156"]
[BlackElo "2205"]
[TimeControl "300"]
[EndTime "12:36:08 PDT"]
[Termination "ACM42 won by resignation"]

1. e4 {[%clk 0:04:54.4]} 1... e6 {[%clk 0:04:58.4]} 2. Bd3 {[%clk 0:04:47.4]}
2... c5 {[%clk 0:04:56.6]} 3. c3 {[%clk 0:04:42.2]} 3... Nc6 {[%clk 0:04:55.9]}
4. Bc2 {[%clk 0:04:40.7]} 4... g6 {[%clk 0:04:55.4]} 5. Nf3 {[%clk 0:04:37]}
5... Bg7 {[%clk 0:04:52.2]} 6. d4 {[%clk 0:04:32.9]} 6... cxd4 {[%clk
0:04:51.2]} 7. cxd4 {[%clk 0:04:31.6]} 7... d5 {[%clk 0:04:50.6]} 8. e5 {[%clk
0:04:29.6]} 8... Nge7 {[%clk 0:04:48.8]} 9. O-O {[%clk 0:04:24.9]} 9... a6
{[%clk 0:04:46.3]} 10. Be3 {[%clk 0:04:21.6]} 10... Qb6 {[%clk 0:04:43]} 11. b3
{[%clk 0:04:16]} 11... f6 {[%clk 0:04:37.9]} 12. Qd2 {[%clk 0:04:07.6]} 12...
O-O {[%clk 0:04:35.7]} 13. Bh6 {[%clk 0:04:05.4]} 13... fxe5 {[%clk 0:04:29.7]}
14. Bxg7 {[%clk 0:04:01.7]} 14... Kxg7 {[%clk 0:04:27.7]} 15. Nxe5 {[%clk
0:03:56.7]} 15... Qxd4 {[%clk 0:04:21.9]} 16. Qg5 {[%clk 0:03:41.4]} 16... Qxe5
{[%clk 0:04:14.9]} 17. Bxg6 {[%clk 0:03:34.6]} 17... Qxg5 {[%clk 0:04:12.8]} 0-1

[Event "Live Chess"]
[Site "Chess.com"]
[Date "2024.06.01"]
[Round "-"]
[White "MaximKovalenko83"]
[Black "gunslinger222"]
[Result "1-0"]
[WhiteElo "2250"]
[BlackElo "2247"]
[TimeControl "300"]
[EndTime "12:36:12 PDT"]
[Termination "MaximKovalenko83 won on time"]

1. d4 {[%clk 0:04:55.2]} 1... Nf6 {[%clk 0:04:58.7]} 2. Nf3 {[%clk 0:04:54]}
2... e6 {[%clk 0:04:58.1]} 3. c4 {[%clk 0:04:52.7]} 3... c5 {[%clk 0:04:54.9]}
4. e3 {[%clk 0:04:51]} 4... g6 {[%clk 0:04:51.3]} 5. Nc3 {[%clk 0:04:49.3]} 5...
Bg7 {[%clk 0:04:49.8]} 6. Be2 {[%clk 0:04:48]} 6... O-O {[%clk 0:04:46.2]} 7.
O-O {[%clk 0:04:47.5]} 7... b6 {[%clk 0:04:45.5]} 8. b3 {[%clk 0:04:44.3]} 8...
Bb7 {[%clk 0:04:44.1]} 9. Bb2 {[%clk 0:04:43.1]} 9... d6 {[%clk 0:04:42.4]} 10.
Rc1 {[%clk 0:04:39.9]} 10... Nbd7 {[%clk 0:04:37.9]} 11. h3 {[%clk 0:04:37.7]}
11... a6 {[%clk 0:04:36.8]} 12. Qc2 {[%clk 0:04:35]} 12... Qc7 {[%clk
0:04:33.3]} 13. Rfd1 {[%clk 0:04:33.4]} 13... Rac8 {[%clk 0:04:30.4]} 14. e4
{[%clk 0:04:27.5]} 14... cxd4 {[%clk 0:04:25.3]} 15. Nxd4 {[%clk 0:04:27.4]}
15... Qb8 {[%clk 0:04:16.4]} 16. f4 {[%clk 0:04:17.1]} 16... Qa8 {[%clk
0:04:13.6]} 17. Bf3 {[%clk 0:04:15.7]} 17... Nc5 {[%clk 0:04:01]} 18. e5 {[%clk
0:04:12.3]} 18... dxe5 {[%clk 0:03:58.9]} 19. fxe5 {[%clk 0:04:07.4]} 19... Nfd7
{[%clk 0:03:13.1]} 20. b4 {[%clk 0:03:54.1]} 20... Nxe5 {[%clk 0:03:07.9]} 21.
bxc5 {[%clk 0:03:48.6]} 21... bxc5 {[%clk 0:02:49.1]} 22. Bxb7 {[%clk
0:03:44.4]} 22... Qxb7 {[%clk 0:02:49]} 23. Nb3 {[%clk 0:03:36.5]} 23... Nxc4
{[%clk 0:02:45.8]} 24. Na4 {[%clk 0:03:35]} 24... Nxb2 {[%clk 0:02:42.2]} 25.
Nxb2 {[%clk 0:03:34.9]} 25... c4 {[%clk 0:02:38.3]} 26. Nxc4 {[%clk 0:03:31.2]}
26... Qc7 {[%clk 0:02:21.7]} 27. Qe2 {[%clk 0:03:25.8]} 27... Qg3 {[%clk
0:02:16.3]} 28. Ne3 {[%clk 0:03:12.6]} 28... Rxc1 {[%clk 0:02:10.7]} 29. Rxc1
{[%clk 0:03:12.5]} 29... a5 {[%clk 0:02:08.6]} 30. Nf1 {[%clk 0:03:07.6]} 30...
Qf4 {[%clk 0:02:02.4]} 31. Rc4 {[%clk 0:03:02]} 31... Qg5 {[%clk 0:01:57.4]} 32.
Qd2 {[%clk 0:02:45.2]} 32... Qf6 {[%clk 0:01:25.2]} 33. Qxa5 {[%clk 0:02:24.6]}
33... h5 {[%clk 0:01:24.2]} 34. Qd2 {[%clk 0:02:13.5]} 34... Kh7 {[%clk
0:01:22]} 35. Qf2 {[%clk 0:02:09.5]} 35... Qe7 {[%clk 0:01:16.8]} 36. Rf4 {[%clk
0:02:06.7]} 36... e5 {[%clk 0:01:12.9]} 37. Rf3 {[%clk 0:01:59.4]} 37... e4
{[%clk 0:01:11.1]} 38. Re3 {[%clk 0:01:55.2]} 38... f5 {[%clk 0:01:05.7]} 39.
Qe2 {[%clk 0:01:51.8]} 39... Bh6 {[%clk 0:00:54.2]} 40. Rc3 {[%clk 0:01:42.3]}
40... f4 {[%clk 0:00:51.7]} 41. Rc4 {[%clk 0:01:35.7]} 41... f3 {[%clk
0:00:30.7]} 42. Rxe4 {[%clk 0:01:08.2]} 42... Qa7+ {[%clk 0:00:17.7]} 43. Qf2
{[%clk 0:01:07.2]} 43... Qxf2+ {[%clk 0:00:14.7]} 44. Kxf2 {[%clk 0:01:07.1]}
44... fxg2+ {[%clk 0:00:13.7]} 45. Kxg2 {[%clk 0:01:06.9]} 45... Ra8 {[%clk
0:00:12.1]} 46. Re7+ {[%clk 0:01:04.4]} 46... Kg8 {[%clk 0:00:10.3]} 47. Re2
{[%clk 0:01:04.3]} 47... g5 {[%clk 0:00:08]} 48. Ng3 {[%clk 0:01:04.2]} 48... h4
{[%clk 0:00:06.5]} 49. Nf5 {[%clk 0:01:02.9]} 49... Bf8 {[%clk 0:00:06.1]} 50.
Ne3 {[%clk 0:01:00.9]} 50... Bd6 {[%clk 0:00:04.2]} 51. Ng4 {[%clk 0:01:00.8]}
51... Bf4 {[%clk 0:00:03]} 52. Rf2 {[%clk 0:00:59.7]} 52... Kf7 {[%clk
0:00:01.9]} 53. Re2 {[%clk 0:00:59.3]} 53... Kg6 {[%clk 0:00:01]} 54. Kf3 {[%clk
0:00:58.7]} 54... Kf5 {[%clk 0:00:00.9]} 55. Nd4+ {[%clk 0:00:57.2]} 1-0

[Event "Live Chess"]
[Site "Chess.com"]
[Date "2024.06.01"]
[Round "-"]
[White "resipsa6"]
[Black "SimonB4a"]
[Result "0-1"]
[WhiteElo "2034"]
[BlackElo "2184"]
[TimeControl "300"]
[EndTime "12:36:27 PDT"]
[Termination "SimonB4a won by checkmate"]

1. e4 {[%clk 0:04:58.5]} 1... e6 {[%clk 0:04:59.1]} 2. d4 {[%clk 0:04:57.6]}
2... d5 {[%clk 0:04:58.4]} 3. exd5 {[%clk 0:04:57]} 3... exd5 {[%clk 0:04:57.7]}
4. Bd3 {[%clk 0:04:56.6]} 4... Bd6 {[%clk 0:04:56.7]} 5. Nf3 {[%clk 0:04:56]}
5... Ne7 {[%clk 0:04:55.8]} 6. c3 {[%clk 0:04:55.4]} 6... Nbc6 {[%clk
0:04:53.5]} 7. Be3 {[%clk 0:04:53.3]} 7... Bg4 {[%clk 0:04:52.3]} 8. Nbd2 {[%clk
0:04:51.5]} 8... Qd7 {[%clk 0:04:51.4]} 9. Qc2 {[%clk 0:04:50.5]} 9... O-O-O
{[%clk 0:04:48.2]} 10. h3 {[%clk 0:04:50]} 10... Bh5 {[%clk 0:04:46.6]} 11.
O-O-O {[%clk 0:04:49.1]} 11... Bg6 {[%clk 0:04:45.5]} 12. Bxg6 {[%clk
0:04:47.8]} 12... hxg6 {[%clk 0:04:44.1]} 13. Rhe1 {[%clk 0:04:41.9]} 13... Nf5
{[%clk 0:04:42.7]} 14. Nb3 {[%clk 0:04:40.3]} 14... Nxe3 {[%clk 0:04:40]} 15.
Rxe3 {[%clk 0:04:39.6]} 15... Bf4 {[%clk 0:04:38.5]} 16. Re1 {[%clk 0:04:37.4]}
16... Rde8 {[%clk 0:04:36.1]} 17. Ne5 {[%clk 0:04:35.1]} 17... Nxe5 {[%clk
0:04:30.8]} 18. dxe5 {[%clk 0:04:32.2]} 18... Rxe5 {[%clk 0:04:27.3]} 19. Nc5
{[%clk 0:04:31.4]} 19... Qe7 {[%clk 0:04:20.2]} 20. Nd3 {[%clk 0:04:28.7]} 20...
Bxe3+ {[%clk 0:04:18.3]} 21. fxe3 {[%clk 0:04:27.6]} 21... Rxe3 {[%clk
0:04:16.8]} 22. Rxe3 {[%clk 0:04:25.4]} 22... Qxe3+ {[%clk 0:04:15.7]} 23. Kd1
{[%clk 0:04:24.4]} 23... Re8 {[%clk 0:04:13.3]} 24. c4 {[%clk 0:04:23.1]} 24...
Qg1+ {[%clk 0:04:09.9]} 25. Kd2 {[%clk 0:04:21.8]} 25... Qxg2+ {[%clk
0:04:08.9]} 26. Kc3 {[%clk 0:04:21]} 26... Qxc2+ {[%clk 0:04:07.7]} 27. Kxc2
{[%clk 0:04:19.8]} 27... dxc4 {[%clk 0:04:07]} 28. Nf4 {[%clk 0:04:19.3]} 28...
c6 {[%clk 0:04:04.1]} 29. a4 {[%clk 0:04:16.2]} 29... Re4 {[%clk 0:04:02.4]} 30.
Ng2 {[%clk 0:04:13.8]} 30... Re2+ {[%clk 0:04:01.1]} 31. Kc3 {[%clk 0:04:13.7]}
31... Rxg2 {[%clk 0:04:00.1]} 32. Kb4 {[%clk 0:04:13.6]} 32... b6 {[%clk
0:03:58.7]} 33. h4 {[%clk 0:04:13.5]} 33... Rh2 {[%clk 0:03:57.4]} 34. h5 {[%clk
0:04:13.4]} 34... Rxh5 {[%clk 0:03:56.5]} 35. b3 {[%clk 0:04:12.9]} 35... cxb3
{[%clk 0:03:54.1]} 36. a5 {[%clk 0:04:12.8]} 36... bxa5+ {[%clk 0:03:53.1]} 37.
Ka3 {[%clk 0:04:09.6]} 37... Rb5 {[%clk 0:03:50.7]} 38. Kb2 {[%clk 0:04:08.8]}
38... g5 {[%clk 0:03:49.6]} 39. Ka3 {[%clk 0:04:08]} 39... g4 {[%clk 0:03:48.8]}
40. Kb2 {[%clk 0:04:07.4]} 40... g3 {[%clk 0:03:47.9]} 41. Ka3 {[%clk
0:04:06.8]} 41... b2 {[%clk 0:03:47.2]} 42. Ka2 {[%clk 0:04:05.9]} 42... b1=Q+
{[%clk 0:03:45.3]} 43. Ka3 {[%clk 0:04:05.8]} 43... Qb3# {[%clk 0:03:44.4]} 0-1